[Event "Titled Tuesday Blitz August 3 2021"]
[White "Dang, Hoang Son"]
[Black "Damjanovic, Vladimir"]
[WhiteFideId "12402435"]
[BlackFideId "903795"]
[WhiteElo "2248"]
[BlackElo "2374"]
[Result "1-0"]
[Round "10"]
[TimeControl "180+1"]
[Date "2021.08.03"]
[WhiteClock "0:00:16"]
[BlackClock "0:00:12"]

1. d4 {[%clk 0:03:00]}  Nf6 {[%clk 0:03:00]} 2. c4 {[%clk 0:03:01]}  c5 {[%clk 0:02:58]} 3. Nf3 {[%clk 0:03:02]}  cxd4 {[%clk 0:02:58]} 4. Nxd4 {[%clk 0:03:02]}  b6 {[%clk 0:02:59]} 5. Nc3 {[%clk 0:03:01]}  Bb7 {[%clk 0:02:59]} 6. f3 {[%clk 0:02:56]}  e6 {[%clk 0:02:57]} 7. e4 {[%clk 0:02:56]}  Nc6 {[%clk 0:02:58]} 8. Be3 {[%clk 0:02:57]}  Be7 {[%clk 0:02:40]} 9. Be2 {[%clk 0:02:53]}  O-O {[%clk 0:02:40]} 10. Qd2 {[%clk 0:02:53]}  Qb8 {[%clk 0:02:40]} 11. O-O-O {[%clk 0:02:49]}  Rc8 {[%clk 0:02:34]} 12. Nxc6 {[%clk 0:02:44]}  Bxc6 {[%clk 0:02:32]} 13. Kb1 {[%clk 0:02:43]}  a6 {[%clk 0:02:30]} 14. g4 {[%clk 0:02:31]}  b5 {[%clk 0:02:26]} 15. g5 {[%clk 0:02:31]}  Ne8 {[%clk 0:02:26]} 16. h4 {[%clk 0:02:32]}  bxc4 {[%clk 0:02:18]} 17. h5 {[%clk 0:02:30]}  Qb4 {[%clk 0:01:55]} 18. g6 {[%clk 0:02:20]}  Bf6 {[%clk 0:01:49]} 19. Nd5 {[%clk 0:02:03]}  Qxd2 {[%clk 0:01:44]} 20. Nxf6+ {[%clk 0:02:03]}  Nxf6 {[%clk 0:01:43]} 21. Bxd2 {[%clk 0:02:00]}  fxg6 {[%clk 0:01:33]} 22. hxg6 {[%clk 0:02:00]}  hxg6 {[%clk 0:01:34]} 23. Bc3 {[%clk 0:01:59]}  Kf7 {[%clk 0:01:27]} 24. Rhg1 {[%clk 0:01:50]}  d5 {[%clk 0:01:08]} 25. e5 {[%clk 0:01:33]}  Nd7 {[%clk 0:01:08]} 26. Rd4 {[%clk 0:01:30]}  Rh8 {[%clk 0:00:42]} 27. Rf4+ {[%clk 0:01:27]}  Kg8 {[%clk 0:00:42]} 28. Rxg6 {[%clk 0:01:17]}  Nf8 {[%clk 0:00:41]} 29. Rg1 {[%clk 0:01:14]}  Be8 {[%clk 0:00:36]} 30. Rfg4 {[%clk 0:01:04]}  Bg6+ {[%clk 0:00:16]} 31. Rxg6 {[%clk 0:00:58]}  Nxg6 {[%clk 0:00:17]} 32. Rxg6 {[%clk 0:00:59]}  Rh1+ {[%clk 0:00:17]} 33. Kc2 {[%clk 0:00:59]}  Kf7 {[%clk 0:00:14]} 34. Rg2 {[%clk 0:00:58]}  Rd8 {[%clk 0:00:10]} 35. Bd4 {[%clk 0:00:58]}  Rdh8 {[%clk 0:00:10]} 36. Bg1 {[%clk 0:00:47]}  R8h5 {[%clk 0:00:08]} 37. f4 {[%clk 0:00:45]}  R5h4 {[%clk 0:00:09]} 38. Be3 {[%clk 0:00:33]}  R1h3 {[%clk 0:00:06]} 39. Kd2 {[%clk 0:00:31]}  Rh8 {[%clk 0:00:07]} 40. Bd4 {[%clk 0:00:27]}  R3h4 {[%clk 0:00:06]} 41. Rf2 {[%clk 0:00:27]}  g6 {[%clk 0:00:07]} 42. b3 {[%clk 0:00:27]}  cxb3 {[%clk 0:00:07]} 43. axb3 {[%clk 0:00:28]}  Rb8 {[%clk 0:00:07]} 44. Kc2 {[%clk 0:00:28]}  Rh3 {[%clk 0:00:08]} 45. Bd3 {[%clk 0:00:23]}  Rc8+ {[%clk 0:00:06]} 46. Kd2 {[%clk 0:00:24]}  Rh1 {[%clk 0:00:06]} 47. Rg2 {[%clk 0:00:22]}  Rg8 {[%clk 0:00:04]} 48. Bxa6 {[%clk 0:00:19]}  Ra8 {[%clk 0:00:03]} 49. Bd3 {[%clk 0:00:16]}  Ra2+ {[%clk 0:00:04]} 50. Bc2 {[%clk 0:00:17]}  Rh4 {[%clk 0:00:03]} 51. Ke3 {[%clk 0:00:16]}  Rh3+ {[%clk 0:00:03]} 52. Kd2 {[%clk 0:00:16]}  Rh4 {[%clk 0:00:03]} 53. Kc3 {[%clk 0:00:13]}  Rh3+ {[%clk 0:00:02]} 54. Kb4 {[%clk 0:00:13]}  Rh6 {[%clk 0:00:02]} 55. Bxg6+ {[%clk 0:00:13]}  Rxg6 {[%clk 0:00:03]} 56. Rxa2 {[%clk 0:00:13]}  Rg4 {[%clk 0:00:03]} 57. Be3 {[%clk 0:00:14]}  Rg3 {[%clk 0:00:04]} 58. Re2 {[%clk 0:00:13]}  Kg6 {[%clk 0:00:04]} 59. Kc5 {[%clk 0:00:14]}  Kf5 {[%clk 0:00:05]} 60. b4 {[%clk 0:00:14]}  Ke4 {[%clk 0:00:05]} 61. b5 {[%clk 0:00:14]}  Kd3 {[%clk 0:00:05]} 62. Re1 {[%clk 0:00:13]}  Rg8 {[%clk 0:00:05]} 63. b6 {[%clk 0:00:13]}  Rb8 {[%clk 0:00:04]} 64. Kc6 {[%clk 0:00:13]}  d4 {[%clk 0:00:05]} 65. Bxd4 {[%clk 0:00:13]}  Kxd4 {[%clk 0:00:05]} 66. Kc7 {[%clk 0:00:14]}  Rg8 {[%clk 0:00:06]} 67. b7 {[%clk 0:00:14]}  Rg7+ {[%clk 0:00:07]} 68. Kb6 {[%clk 0:00:15]}  Rg8 {[%clk 0:00:08]} 69. Ka7 {[%clk 0:00:13]}  Kd3 {[%clk 0:00:08]} 70. b8=Q {[%clk 0:00:12]}  Rxb8 {[%clk 0:00:09]} 71. Kxb8 {[%clk 0:00:13]}  Kd2 {[%clk 0:00:10]} 72. Rh1 {[%clk 0:00:13]}  Ke3 {[%clk 0:00:10]} 73. Rh4 {[%clk 0:00:13]}  Ke4 {[%clk 0:00:10]} 74. Kc7 {[%clk 0:00:13]}  Kf5 {[%clk 0:00:11]} 75. Kd6 {[%clk 0:00:14]}  Kg6 {[%clk 0:00:12]} 76. Kxe6 {[%clk 0:00:14]}  Kg7 {[%clk 0:00:13]} 77. f5 {[%clk 0:00:15]}  Kg8 {[%clk 0:00:13]} 78. f6 {[%clk 0:00:15]}  Kf8 {[%clk 0:00:12]} 79. Rh8# {[%clk 0:00:16]} 1-0


[Site "https://www.chess.com"]

[Event "Titled Tuesday Blitz August 3 2021"]
[White "Dobre, Claudiu-Cristian"]
[Black "Sengupta, Deep"]
[WhiteFideId "1211854"]
[BlackFideId "5008352"]
[WhiteElo "2259"]
[BlackElo "2347"]
[Result "1/2-1/2"]
[Round "10"]
[TimeControl "180+1"]
[Date "2021.08.03"]
[WhiteClock "0:00:11"]
[BlackClock "0:00:19"]

1. c4 {[%clk 0:03:00]}  e6 {[%clk 0:02:59]} 2. Nc3 {[%clk 0:02:58]}  b6 {[%clk 0:02:59]} 3. d4 {[%clk 0:02:49]}  Bb7 {[%clk 0:02:59]} 4. f3 {[%clk 0:02:49]}  f5 {[%clk 0:02:59]} 5. g3 {[%clk 0:02:48]}  Nf6 {[%clk 0:02:59]} 6. Bg2 {[%clk 0:02:47]}  Bb4 {[%clk 0:02:59]} 7. e3 {[%clk 0:02:45]}  O-O {[%clk 0:02:59]} 8. Ne2 {[%clk 0:02:45]}  Nc6 {[%clk 0:02:53]} 9. O-O {[%clk 0:02:42]}  Ne7 {[%clk 0:02:38]} 10. e4 {[%clk 0:02:28]}  fxe4 {[%clk 0:02:28]} 11. fxe4 {[%clk 0:02:27]}  e5 {[%clk 0:02:28]} 12. a3 {[%clk 0:01:36]}  Bxc3 {[%clk 0:02:27]} 13. Nxc3 {[%clk 0:01:33]}  Ng6 {[%clk 0:02:22]} 14. d5 {[%clk 0:01:31]}  d6 {[%clk 0:02:18]} 15. Bh3 {[%clk 0:01:29]}  Bc8 {[%clk 0:02:17]} 16. Be6+ {[%clk 0:01:22]}  Bxe6 {[%clk 0:01:46]} 17. dxe6 {[%clk 0:01:21]}  c6 {[%clk 0:01:47]} 18. Bg5 {[%clk 0:01:07]}  Qe7 {[%clk 0:01:45]} 19. Bxf6 {[%clk 0:01:04]}  gxf6 {[%clk 0:01:41]} 20. Qg4 {[%clk 0:00:57]}  Rae8 {[%clk 0:01:41]} 21. b4 {[%clk 0:00:52]}  Qxe6 {[%clk 0:01:40]} 22. Qxe6+ {[%clk 0:00:52]}  Rxe6 {[%clk 0:01:40]} 23. b5 {[%clk 0:00:52]}  Rc8 {[%clk 0:01:38]} 24. Rac1 {[%clk 0:00:45]}  Ne7 {[%clk 0:01:31]} 25. bxc6 {[%clk 0:00:45]}  Nxc6 {[%clk 0:01:28]} 26. Nd5 {[%clk 0:00:42]}  Kg7 {[%clk 0:01:27]} 27. Rf2 {[%clk 0:00:33]}  Nd4 {[%clk 0:01:27]} 28. Ne3 {[%clk 0:00:31]}  b5 {[%clk 0:01:16]} 29. Kg2 {[%clk 0:00:19]}  Re7 {[%clk 0:01:11]} 30. Rcf1 {[%clk 0:00:18]}  Rf7 {[%clk 0:01:04]} 31. cxb5 {[%clk 0:00:17]}  Rc3 {[%clk 0:01:03]} 32. Nd5 {[%clk 0:00:15]}  Rxa3 {[%clk 0:01:01]} 33. Nxf6 {[%clk 0:00:15]}  Kg6 {[%clk 0:00:56]} 34. h4 {[%clk 0:00:14]}  h5 {[%clk 0:00:55]} 35. g4 {[%clk 0:00:13]}  hxg4 {[%clk 0:00:53]} 36. h5+ {[%clk 0:00:14]}  Kg5 {[%clk 0:00:53]} 37. h6 {[%clk 0:00:12]}  Rh3 {[%clk 0:00:33]} 38. h7 {[%clk 0:00:12]}  Ne6 {[%clk 0:00:21]} 39. Rh1 {[%clk 0:00:11]}  Nf4+ {[%clk 0:00:20]} 40. Rxf4 {[%clk 0:00:10]}  exf4 {[%clk 0:00:19]} 41. Rxh3 {[%clk 0:00:07]}  gxh3+ {[%clk 0:00:19]} 42. Kxh3 {[%clk 0:00:07]}  Rxf6 {[%clk 0:00:17]} 43. h8=Q {[%clk 0:00:05]}  Rh6+ {[%clk 0:00:17]} 44. Qxh6+ {[%clk 0:00:05]}  Kxh6 {[%clk 0:00:18]} 45. Kg4 {[%clk 0:00:05]}  Kg6 {[%clk 0:00:18]} 46. Kxf4 {[%clk 0:00:06]}  Kf6 {[%clk 0:00:19]} 47. Ke3 {[%clk 0:00:06]}  Ke6 {[%clk 0:00:19]} 48. Kd3 {[%clk 0:00:06]}  Ke5 {[%clk 0:00:19]} 49. Ke3 {[%clk 0:00:07]}  Kf6 {[%clk 0:00:15]} 50. Kd4 {[%clk 0:00:06]}  Ke6 {[%clk 0:00:15]} 51. Kc4 {[%clk 0:00:07]}  Ke5 {[%clk 0:00:13]} 52. Kd3 {[%clk 0:00:07]}  Kf6 {[%clk 0:00:12]} 53. Kd4 {[%clk 0:00:07]}  Ke6 {[%clk 0:00:13]} 54. Kd3 {[%clk 0:00:07]}  Ke5 {[%clk 0:00:13]} 55. Ke3 {[%clk 0:00:07]}  d5 {[%clk 0:00:12]} 56. exd5 {[%clk 0:00:07]}  Kxd5 {[%clk 0:00:13]} 57. Kd3 {[%clk 0:00:07]}  Kc5 {[%clk 0:00:14]} 58. Kc3 {[%clk 0:00:08]}  Kxb5 {[%clk 0:00:14]} 59. Kb3 {[%clk 0:00:08]}  a5 {[%clk 0:00:13]} 60. Ka3 {[%clk 0:00:08]}  a4 {[%clk 0:00:14]} 61. Ka2 {[%clk 0:00:09]}  Ka5 {[%clk 0:00:14]} 62. Ka3 {[%clk 0:00:09]}  Kb5 {[%clk 0:00:15]} 63. Ka2 {[%clk 0:00:09]}  Kb4 {[%clk 0:00:15]} 64. Kb2 {[%clk 0:00:09]}  a3+ {[%clk 0:00:16]} 65. Ka2 {[%clk 0:00:09]}  Ka4 {[%clk 0:00:17]} 66. Ka1 {[%clk 0:00:10]}  Kb3 {[%clk 0:00:17]} 67. Kb1 {[%clk 0:00:10]}  a2+ {[%clk 0:00:18]} 68. Ka1 {[%clk 0:00:11]}  Ka3 {[%clk 0:00:19]} 1/2-1/2


[Site "https://www.chess.com"]

[Event "Titled Tuesday Blitz August 3 2021"]
[White "Efimenko, Maria"]
[Black "Leve, Nitai"]
[WhiteFideId "14124327"]
[BlackFideId "2006898"]
[WhiteElo "2207"]
[BlackElo "2144"]
[Result "0-1"]
[Round "10"]
[TimeControl "180+1"]
[Date "2021.08.03"]
[WhiteClock "0:00:07"]
[BlackClock "0:00:41"]

1. e4 {[%clk 0:02:59]}  e6 {[%clk 0:02:58]} 2. d4 {[%clk 0:02:59]}  d5 {[%clk 0:02:59]} 3. Nd2 {[%clk 0:02:58]}  Nf6 {[%clk 0:02:59]} 4. e5 {[%clk 0:02:58]}  Nfd7 {[%clk 0:03:00]} 5. f4 {[%clk 0:02:58]}  c5 {[%clk 0:03:00]} 6. Ngf3 {[%clk 0:02:57]}  Nc6 {[%clk 0:03:01]} 7. c3 {[%clk 0:02:56]}  Qb6 {[%clk 0:02:57]} 8. Nb3 {[%clk 0:02:54]}  f6 {[%clk 0:02:55]} 9. Be3 {[%clk 0:02:52]}  cxd4 {[%clk 0:02:54]} 10. Bxd4 {[%clk 0:02:23]}  Nxd4 {[%clk 0:02:52]} 11. Qxd4 {[%clk 0:02:23]}  fxe5 {[%clk 0:02:51]} 12. fxe5 {[%clk 0:02:20]}  Nc5 {[%clk 0:02:42]} 13. Nfd2 {[%clk 0:01:48]}  Be7 {[%clk 0:02:27]} 14. O-O-O {[%clk 0:01:31]}  O-O {[%clk 0:02:23]} 15. Be2 {[%clk 0:01:26]}  a5 {[%clk 0:02:20]} 16. Rhf1 {[%clk 0:01:17]}  Bd7 {[%clk 0:02:01]} 17. Qg4 {[%clk 0:01:03]}  a4 {[%clk 0:01:38]} 18. Nxc5 {[%clk 0:01:01]}  Qxc5 {[%clk 0:01:32]} 19. a3 {[%clk 0:00:39]}  Qa5 {[%clk 0:01:15]} 20. Bd3 {[%clk 0:00:28]}  Bxa3 {[%clk 0:01:05]} 21. bxa3 {[%clk 0:00:21]}  Qxc3+ {[%clk 0:01:05]} 22. Bc2 {[%clk 0:00:21]}  Rxf1 {[%clk 0:00:47]} 23. Nxf1 {[%clk 0:00:18]}  Rc8 {[%clk 0:00:47]} 24. Qe2 {[%clk 0:00:09]}  Qa1+ {[%clk 0:00:47]} 25. Kd2 {[%clk 0:00:09]}  Rxc2+ {[%clk 0:00:46]} 26. Kxc2 {[%clk 0:00:09]}  Qa2+ {[%clk 0:00:46]} 27. Kd3 {[%clk 0:00:08]}  Bb5+ {[%clk 0:00:46]} 28. Kd4 {[%clk 0:00:07]}  Qxe2 {[%clk 0:00:41]} 0-1


[Site "https://www.chess.com"]

[Event "Titled Tuesday Blitz August 3 2021"]
[White "Ezat, Mohamed"]
[Black "Navalgund, Niranjan"]
[WhiteFideId "10600906"]
[BlackFideId "5030854"]
[WhiteElo "2414"]
[BlackElo "2290"]
[Result "1-0"]
[Round "10"]
[TimeControl "180+1"]
[Date "2021.08.03"]
[WhiteClock "0:00:20"]
[BlackClock "0:00:20"]

1. e4 {[%clk 0:02:53]}  e5 {[%clk 0:02:58]} 2. Nf3 {[%clk 0:02:51]}  Qe7 {[%clk 0:02:55]} 3. Nc3 {[%clk 0:02:48]}  c6 {[%clk 0:02:54]} 4. Bc4 {[%clk 0:02:47]}  d6 {[%clk 0:02:53]} 5. d4 {[%clk 0:02:45]}  Nd7 {[%clk 0:02:53]} 6. O-O {[%clk 0:02:44]}  h6 {[%clk 0:02:50]} 7. a4 {[%clk 0:02:44]}  g6 {[%clk 0:02:50]} 8. a5 {[%clk 0:02:43]}  Bg7 {[%clk 0:02:48]} 9. dxe5 {[%clk 0:02:44]}  Nxe5 {[%clk 0:02:47]} 10. Nxe5 {[%clk 0:02:43]}  dxe5 {[%clk 0:02:47]} 11. b3 {[%clk 0:02:43]}  Be6 {[%clk 0:02:42]} 12. Ba3 {[%clk 0:02:42]}  Qd7 {[%clk 0:02:43]} 13. Bxe6 {[%clk 0:02:42]}  Qxe6 {[%clk 0:02:41]} 14. a6 {[%clk 0:02:42]}  b5 {[%clk 0:02:39]} 15. Qe2 {[%clk 0:02:39]}  Ne7 {[%clk 0:02:37]} 16. Rad1 {[%clk 0:02:39]}  O-O {[%clk 0:02:30]} 17. Rd6 {[%clk 0:02:34]}  Qc8 {[%clk 0:02:30]} 18. Bc5 {[%clk 0:02:25]}  Rd8 {[%clk 0:02:20]} 19. Rfd1 {[%clk 0:02:08]}  Rxd6 {[%clk 0:01:54]} 20. Bxd6 {[%clk 0:02:06]}  Qe6 {[%clk 0:01:47]} 21. Bc5 {[%clk 0:02:06]}  Bf8 {[%clk 0:01:39]} 22. Na2 {[%clk 0:01:52]}  Qc8 {[%clk 0:01:29]} 23. Nb4 {[%clk 0:01:51]}  Qe8 {[%clk 0:01:26]} 24. Qe3 {[%clk 0:01:49]}  Rd8 {[%clk 0:01:24]} 25. Ra1 {[%clk 0:01:22]}  Nc8 {[%clk 0:00:51]} 26. Bxf8 {[%clk 0:01:17]}  Qxf8 {[%clk 0:00:50]} 27. Nxc6 {[%clk 0:01:14]}  Rd7 {[%clk 0:00:50]} 28. Nxe5 {[%clk 0:01:12]}  Qa3 {[%clk 0:00:47]} 29. Re1 {[%clk 0:01:02]}  Re7 {[%clk 0:00:44]} 30. Ng4 {[%clk 0:00:56]}  h5 {[%clk 0:00:44]} 31. Nf6+ {[%clk 0:00:49]}  Kg7 {[%clk 0:00:44]} 32. Nd5 {[%clk 0:00:49]}  Re6 {[%clk 0:00:43]} 33. Qc3+ {[%clk 0:00:49]}  Kh7 {[%clk 0:00:40]} 34. Qxc8 {[%clk 0:00:48]}  Qa5 {[%clk 0:00:38]} 35. Kf1 {[%clk 0:00:45]}  Qd2 {[%clk 0:00:32]} 36. Qc3 {[%clk 0:00:43]}  Qg5 {[%clk 0:00:32]} 37. g3 {[%clk 0:00:42]}  h4 {[%clk 0:00:32]} 38. e5 {[%clk 0:00:33]}  h3 {[%clk 0:00:28]} 39. Nf6+ {[%clk 0:00:31]}  Kh6 {[%clk 0:00:28]} 40. Qe3 {[%clk 0:00:28]}  Rxa6 {[%clk 0:00:26]} 41. Ng8+ {[%clk 0:00:21]}  Kh5 {[%clk 0:00:25]} 42. g4+ {[%clk 0:00:21]}  Qxg4 {[%clk 0:00:20]} 43. Qh6# {[%clk 0:00:20]} 1-0


[Site "https://www.chess.com"]

[Event "Titled Tuesday Blitz August 3 2021"]
[White "FGHSMN"]
[Black "Assaubayeva, Bibisara"]
[BlackFideId "13708694"]
[WhiteElo "2545"]
[BlackElo "2232"]
[Result "1-0"]
[Round "10"]
[TimeControl "180+1"]
[Date "2021.08.03"]
[WhiteClock "0:00:37"]
[BlackClock "0:00:07"]

1. e4 {[%clk 0:03:00]}  c5 {[%clk 0:02:59]} 2. Nc3 {[%clk 0:03:00]}  d6 {[%clk 0:02:59]} 3. d4 {[%clk 0:03:00]}  cxd4 {[%clk 0:02:59]} 4. Qxd4 {[%clk 0:03:01]}  Nc6 {[%clk 0:02:59]} 5. Qd2 {[%clk 0:03:00]}  g6 {[%clk 0:02:59]} 6. b3 {[%clk 0:03:00]}  Bh6 {[%clk 0:03:00]} 7. f4 {[%clk 0:02:59]}  f5 {[%clk 0:03:00]} 8. exf5 {[%clk 0:02:55]}  Bxf5 {[%clk 0:03:00]} 9. Bd3 {[%clk 0:02:51]}  Nf6 {[%clk 0:02:59]} 10. Bxf5 {[%clk 0:02:49]}  gxf5 {[%clk 0:03:00]} 11. Bb2 {[%clk 0:02:47]}  Qa5 {[%clk 0:03:00]} 12. O-O-O {[%clk 0:02:43]}  O-O-O {[%clk 0:02:57]} 13. Nge2 {[%clk 0:02:41]}  d5 {[%clk 0:02:54]} 14. Qd3 {[%clk 0:02:18]}  e6 {[%clk 0:02:02]} 15. Kb1 {[%clk 0:02:14]}  Rhg8 {[%clk 0:01:56]} 16. g3 {[%clk 0:02:12]}  Ne4 {[%clk 0:01:49]} 17. Rhf1 {[%clk 0:02:06]}  Kb8 {[%clk 0:01:41]} 18. Qb5 {[%clk 0:01:52]}  Qc7 {[%clk 0:01:18]} 19. Nxe4 {[%clk 0:01:45]}  fxe4 {[%clk 0:01:03]} 20. f5 {[%clk 0:01:27]}  a6 {[%clk 0:00:43]} 21. Qc5 {[%clk 0:01:24]}  Bf8 {[%clk 0:00:41]} 22. Qf2 {[%clk 0:01:15]}  exf5 {[%clk 0:00:27]} 23. Qxf5 {[%clk 0:01:12]}  Nb4 {[%clk 0:00:27]} 24. Nd4 {[%clk 0:01:03]}  Bg7 {[%clk 0:00:27]} 25. Qf2 {[%clk 0:00:59]}  Rgf8 {[%clk 0:00:25]} 26. Qe2 {[%clk 0:00:59]}  Bxd4 {[%clk 0:00:23]} 27. Bxd4 {[%clk 0:00:58]}  Nc6 {[%clk 0:00:19]} 28. Bb2 {[%clk 0:00:56]}  Rxf1 {[%clk 0:00:19]} 29. Rxf1 {[%clk 0:00:57]}  Qe7 {[%clk 0:00:19]} 30. Rf4 {[%clk 0:00:55]}  Re8 {[%clk 0:00:16]} 31. Qe3 {[%clk 0:00:52]}  Qd6 {[%clk 0:00:15]} 32. Rf6 {[%clk 0:00:49]}  d4 {[%clk 0:00:12]} 33. Qxe4 {[%clk 0:00:44]}  Rxe4 {[%clk 0:00:10]} 34. Rxd6 {[%clk 0:00:44]}  Re1+ {[%clk 0:00:08]} 35. Bc1 {[%clk 0:00:44]}  Rh1 {[%clk 0:00:08]} 36. Rh6 {[%clk 0:00:44]}  Ne5 {[%clk 0:00:06]} 37. Rxh7 {[%clk 0:00:43]}  d3 {[%clk 0:00:06]} 38. Kb2 {[%clk 0:00:40]}  dxc2 {[%clk 0:00:06]} 39. Kxc2 {[%clk 0:00:41]}  Nf3 {[%clk 0:00:06]} 40. Bf4+ {[%clk 0:00:41]}  Kc8 {[%clk 0:00:06]} 41. Rc7+ {[%clk 0:00:39]}  Kd8 {[%clk 0:00:06]} 42. Rxb7 {[%clk 0:00:37]}  Rxh2+ {[%clk 0:00:06]} 43. Kb1 {[%clk 0:00:37]}  Rxa2 {[%clk 0:00:07]} 44. Kxa2 {[%clk 0:00:37]} 1-0


[Site "https://www.chess.com"]

[Event "Titled Tuesday Blitz August 3 2021"]
[White "Firat, Burak"]
[Black "Miszler, Levente"]
[WhiteFideId "6305881"]
[BlackFideId "763276"]
[WhiteElo "2531"]
[BlackElo "1967"]
[Result "1-0"]
[Round "10"]
[TimeControl "180+1"]
[Date "2021.08.03"]
[WhiteClock "0:00:33"]
[BlackClock "0:00:04"]

1. g4 {[%clk 0:03:00]}  g5 {[%clk 0:02:56]} 2. Bg2 {[%clk 0:03:00]}  Bg7 {[%clk 0:02:56]} 3. d4 {[%clk 0:02:57]}  d5 {[%clk 0:02:54]} 4. c4 {[%clk 0:02:56]}  c6 {[%clk 0:02:54]} 5. h3 {[%clk 0:02:52]}  h6 {[%clk 0:02:53]} 6. Nf3 {[%clk 0:02:52]}  Nf6 {[%clk 0:02:53]} 7. Nc3 {[%clk 0:02:52]}  Ne4 {[%clk 0:02:40]} 8. Qc2 {[%clk 0:02:47]}  Nxc3 {[%clk 0:02:39]} 9. bxc3 {[%clk 0:02:47]}  dxc4 {[%clk 0:02:36]} 10. Rb1 {[%clk 0:02:45]}  Nd7 {[%clk 0:02:30]} 11. h4 {[%clk 0:02:36]}  gxh4 {[%clk 0:02:16]} 12. Rxh4 {[%clk 0:02:33]}  Nf6 {[%clk 0:02:02]} 13. Ne5 {[%clk 0:02:31]}  Be6 {[%clk 0:01:54]} 14. Rxb7 {[%clk 0:02:29]}  Qd6 {[%clk 0:01:06]} 15. Bxc6+ {[%clk 0:02:17]}  Kf8 {[%clk 0:01:04]} 16. Qa4 {[%clk 0:02:13]}  Bd5 {[%clk 0:00:59]} 17. Ba3 {[%clk 0:02:08]}  Bxc6 {[%clk 0:00:57]} 18. Nxc6 {[%clk 0:01:56]}  Qf4 {[%clk 0:00:57]} 19. Rxe7 {[%clk 0:01:43]}  Kg8 {[%clk 0:00:53]} 20. Qxc4 {[%clk 0:01:43]}  Ne4 {[%clk 0:00:36]} 21. Rh2 {[%clk 0:01:28]}  Rf8 {[%clk 0:00:21]} 22. Rxe4 {[%clk 0:00:55]}  Qxe4 {[%clk 0:00:22]} 23. Bxf8 {[%clk 0:00:55]}  Qb1+ {[%clk 0:00:21]} 24. Kd2 {[%clk 0:00:55]}  Qb2+ {[%clk 0:00:21]} 25. Ke3 {[%clk 0:00:54]}  Bxf8 {[%clk 0:00:18]} 26. Ne5 {[%clk 0:00:51]}  Rh7 {[%clk 0:00:15]} 27. Kf3 {[%clk 0:00:48]}  Rg7 {[%clk 0:00:14]} 28. Rh1 {[%clk 0:00:38]}  Qb7+ {[%clk 0:00:12]} 29. Qc6 {[%clk 0:00:35]}  Qe7 {[%clk 0:00:11]} 30. Qxh6 {[%clk 0:00:34]}  f6 {[%clk 0:00:04]} 31. Qh8# {[%clk 0:00:33]} 1-0


[Site "https://www.chess.com"]

[Event "Titled Tuesday Blitz August 3 2021"]
[White "Gerzhoy, Leonid"]
[Black "Xie, Bryan"]
[WhiteFideId "2806126"]
[BlackFideId "30941296"]
[WhiteElo "2509"]
[BlackElo "1899"]
[Result "1/2-1/2"]
[Round "10"]
[TimeControl "180+1"]
[Date "2021.08.03"]
[WhiteClock "0:00:35"]
[BlackClock "0:00:52"]

1. d4 {[%clk 0:03:00]}  Nf6 {[%clk 0:02:59]} 2. Nf3 {[%clk 0:02:58]}  e6 {[%clk 0:02:59]} 3. e3 {[%clk 0:02:57]}  b6 {[%clk 0:02:57]} 4. Bd3 {[%clk 0:02:56]}  Bb7 {[%clk 0:02:58]} 5. O-O {[%clk 0:02:56]}  Be7 {[%clk 0:02:58]} 6. c4 {[%clk 0:02:56]}  O-O {[%clk 0:02:59]} 7. Nc3 {[%clk 0:02:55]}  d5 {[%clk 0:02:58]} 8. b3 {[%clk 0:02:55]}  Nbd7 {[%clk 0:02:54]} 9. Bb2 {[%clk 0:02:55]}  c5 {[%clk 0:02:46]} 10. Rc1 {[%clk 0:02:54]}  cxd4 {[%clk 0:02:45]} 11. exd4 {[%clk 0:02:53]}  Rc8 {[%clk 0:02:44]} 12. Qe2 {[%clk 0:02:52]}  Re8 {[%clk 0:02:37]} 13. cxd5 {[%clk 0:02:48]}  Nxd5 {[%clk 0:02:28]} 14. Nxd5 {[%clk 0:02:48]}  Bxd5 {[%clk 0:02:29]} 15. Ne5 {[%clk 0:02:43]}  Nxe5 {[%clk 0:02:21]} 16. dxe5 {[%clk 0:02:42]}  Bg5 {[%clk 0:02:08]} 17. f4 {[%clk 0:02:34]}  Rxc1 {[%clk 0:02:06]} 18. Bxc1 {[%clk 0:02:33]}  Be7 {[%clk 0:02:06]} 19. f5 {[%clk 0:02:29]}  Bg5 {[%clk 0:02:00]} 20. f6 {[%clk 0:02:25]}  Bxc1 {[%clk 0:01:46]} 21. Rxc1 {[%clk 0:02:23]}  gxf6 {[%clk 0:01:26]} 22. Qg4+ {[%clk 0:01:16]}  Kh8 {[%clk 0:01:25]} 23. Bxh7 {[%clk 0:01:12]}  Kxh7 {[%clk 0:01:22]} 24. Rc3 {[%clk 0:01:10]}  Bxg2 {[%clk 0:01:10]} 25. Qh4+ {[%clk 0:01:03]}  Kg8 {[%clk 0:00:55]} 26. Rg3+ {[%clk 0:01:01]}  Kf8 {[%clk 0:00:55]} 27. exf6 {[%clk 0:00:47]}  Qd1+ {[%clk 0:00:51]} 28. Kxg2 {[%clk 0:00:47]}  Qe2+ {[%clk 0:00:50]} 29. Kg1 {[%clk 0:00:39]}  Qe1+ {[%clk 0:00:50]} 30. Kg2 {[%clk 0:00:38]}  Qe2+ {[%clk 0:00:51]} 31. Kg1 {[%clk 0:00:35]}  Qe1+ {[%clk 0:00:51]} 32. Kg2 {[%clk 0:00:35]}  Qe2+ {[%clk 0:00:52]} 1/2-1/2


[Site "https://www.chess.com"]